fUSD/lending_fUSD_20260703
["ID","MTS","AMOUNT","RATE_DAILY","PERIOD"]
[426958717,1783066240000,-151.0,0.00024719,2]
[426958692,1783066240000,-151.0,0.00024197,7]
[426958693,1783066240000,-388.1,0.000242,2]
[426958694,1783066240000,-863.47626194,0.0002421,2]
[426958695,1783066240000,-150.0,0.00024227,4]
[426958697,1783066240000,-250.0,0.000243,2]
[426958699,1783066240000,-150.0,0.00024338,4]
[426958698,1783066240000,-262.698042,0.00024304,14]
[426958700,1783066240000,-4993.317946,0.00024371,2]
[426958701,1783066240000,-150.0,0.0002445,7]
[426958703,1783066240000,-3646.96536491,0.00024456,2]
[426958702,1783066240000,-150.0,0.0002445,7]
[426958720,1783066240000,-151.0,0.00024719,2]
[426958704,1783066240000,-500.0,0.00024491,2]
[426958709,1783066240000,-177.3,0.00024658,2]
[426958705,1783066240000,-150.0,0.00024562,7]
[426958707,1783066240000,-150.0,0.00024651,7]
[426958708,1783066240000,-165.17,0.00024658,2]
[426958710,1783066240000,-177.03,0.00024658,2]
[426958712,1783066240000,-150.0,0.00024673,7]
[426958714,1783066240000,-151.0,0.00024719,2]
[426958715,1783066240000,-151.0,0.00024719,2]
[426958716,1783066240000,-151.0,0.00024719,2]
[426958713,1783066240000,-222.32720956,0.00024719,2]
[426958718,1783066240000,-151.0,0.00024719,2]
[426958706,1783066240000,-150.0,0.00024651,7]
[426958747,1783066240000,-200.54356981,0.00024908,2]
[426958733,1783066240000,-151.0,0.00024719,2]
[426958750,1783066240000,-774.24,0.00024961,7]
[426958778,1783066240000,-151.0,0.00025,2]
[426958780,1783066240000,-151.0,0.00025,2]
[426958783,1783066240000,-151.0,0.00025015,2]
[426958781,1783066240000,-151.0,0.00025,2]
[426958782,1783066240000,-150.0,0.00025008,7]
[426958784,1783066240000,-151.0,0.00025015,2]
[426958785,1783066240000,-3646.96536491,0.00025017,2]
[426958786,1783066240000,-160.0,0.00025097,2]
[426958787,1783066240000,-160.0,0.00025097,2]
[426958788,1783066240000,-707.15457548,0.000251,2]
[426958792,1783066240000,-216.74224685,0.00025116,2]
[426958779,1783066240000,-171.279758,0.00025,2]
[426958791,1783066240000,-185.13461295,0.000251,2]
[426958790,1783066240000,-771.86511579,0.000251,2]
[426958794,1783066240000,-150.0,0.0002512,7]
[426958798,1783066240000,-150.0,0.00025187,7]
[426958796,1783066240000,-4993.317946,0.00025148,2]
[426958795,1783066240000,-150.0,0.0002512,7]
[426958797,1783066240000,-150.0,0.00025187,7]
[426958799,1783066240000,-3255.97628438,0.000252,2]
[426958801,1783066240000,-1787.3,0.00025274,2]
[426958802,1783066240000,-500.0,0.00025299,2]
[426958800,1783066240000,-150.0,0.00025232,7]
[426958748,1783066240000,-294.21365682,0.0002491,2]
[426958793,1783066240000,-160.0,0.00025116,2]
[426958777,1783066240000,-729.031628,0.00025,2]
[426958789,1783066240000,-461.38115979,0.000251,2]
[426958774,1783066240000,-729.031628,0.00025,2]
[426958776,1783066240000,-729.031628,0.00025,2]
[426958751,1783066240000,-4977.97,0.00024961,7]
[426958752,1783066240000,-1414.53,0.00024961,7]
[426958754,1783066240000,-14203.42,0.0002498,2]
[426958755,1783066240000,-176.46,0.0002498,2]
[426958753,1783066240000,-9999.99,0.0002498,2]
[426958757,1783066240000,-500.0,0.00024999,2]
[426958760,1783066240000,-500.0,0.00024999,2]
[426958759,1783066240000,-500.0,0.00024999,2]
[426958758,1783066240000,-500.0,0.00024999,2]
[426958761,1783066240000,-32825.58,0.00025,2]
[426958756,1783066240000,-151.0,0.00024996,7]
[426958763,1783066240000,-251.638202,0.00025,2]
[426958749,1783066240000,-170.39,0.00024953,2]
[426958775,1783066240000,-729.031628,0.00025,2]
[426958765,1783066240000,-251.638202,0.00025,2]
[426958766,1783066240000,-251.638202,0.00025,2]
[426958762,1783066240000,-2009.0,0.00025,2]
[426958767,1783066240000,-884.850308,0.00025,2]
[426958768,1783066240000,-884.850308,0.00025,2]
[426958770,1783066240000,-884.850308,0.00025,2]
[426958769,1783066240000,-884.850308,0.00025,2]
[426958771,1783066240000,-151.0,0.00025,2]
[426958772,1783066240000,-161.972684,0.00025,2]
[426958773,1783066240000,-151.000009,0.00025,2]
[426958764,1783066240000,-251.638202,0.00025,2]
[426958841,1783066241000,-3255.97628438,0.000254,2]
[426958842,1783066241000,-371.42848157,0.00025438,2]
[426958839,1783066241000,-155.76472,0.00025367,2]
[426958835,1783066241000,-500.0,0.00025302,2]
[426958828,1783066241000,-151.0,0.00025302,2]
[426958837,1783066241000,-150.0,0.00025343,7]
[426958838,1783066241000,-428.11875631,0.00025367,2]
[426958834,1783066241000,-500.0,0.00025302,2]
[426958833,1783066241000,-151.0,0.00025302,2]
[426958843,1783066241000,-150.0,0.00025455,7]
[426958836,1783066241000,-500.0,0.00025302,2]
[426958840,1783066241000,-218.06194756,0.00025377,2]
[426958849,1783066241000,-151.0,0.00025536,7]
[426958845,1783066241000,-150.0,0.00025455,7]
[426958847,1783066241000,-308.13384107,0.000255,2]
[426958848,1783066241000,-4993.317946,0.00025536,2]
[426958846,1783066241000,-150.0,0.00025455,7]
[426958850,1783066241000,-166.75,0.00025539,2]
[426958851,1783066241000,-308.13384107,0.0002555,2]
[426958852,1783066241000,-158.07,0.00025555,2]
[426958853,1783066241000,-150.0,0.00025566,7]
[426958855,1783066241000,-707.15457548,0.000256,2]
[426958854,1783066241000,-3646.96536491,0.00025578,2]
[426958856,1783066241000,-461.38115979,0.000256,2]
[426958844,1783066241000,-150.0,0.00025455,7]
[426958832,1783066241000,-151.0,0.00025302,2]
[426958803,1783066241000,-707.15457548,0.000253,2]
[426958830,1783066241000,-506.722984,0.00025302,2]
[426958804,1783066241000,-461.38115979,0.000253,2]
[426958805,1783066241000,-771.86511579,0.000253,2]
[426958806,1783066241000,-185.13461295,0.000253,2]
[426958809,1783066241000,-500.0,0.00025302,2]
[426958808,1783066241000,-288.693575,0.00025302,2]
[426958807,1783066241000,-500.0,0.00025302,2]
[426958810,1783066241000,-500.0,0.00025302,2]
[426958812,1783066241000,-500.0,0.00025302,2]
[426958811,1783066241000,-242.23160423,0.00025302,2]
[426958813,1783066241000,-500.0,0.00025302,2]
[426958815,1783066241000,-580.9512148,0.00025302,2]
[426958814,1783066241000,-500.0,0.00025302,2]
[426958816,1783066241000,-500.0,0.00025302,2]
[426958818,1783066241000,-527.90478303,0.00025302,2]
[426958817,1783066241000,-500.0,0.00025302,2]
[426958819,1783066241000,-500.0,0.00025302,2]
[426958820,1783066241000,-500.0,0.00025302,2]
[426958822,1783066241000,-219.014256,0.00025302,2]
[426958824,1783066241000,-219.014256,0.00025302,2]
[426958823,1783066241000,-219.014256,0.00025302,2]
[426958821,1783066241000,-219.014256,0.00025302,2]
[426958825,1783066241000,-506.722984,0.00025302,2]
[426958826,1783066241000,-506.722984,0.00025302,2]
[426958827,1783066241000,-151.0,0.00025302,2]
[426958829,1783066241000,-506.722984,0.00025302,2]
[426958831,1783066241000,-151.0,0.00025302,2]
[426958859,1783066241000,-272.02744019,0.000256,2]
[426958858,1783066241000,-185.13461295,0.000256,2]
[426958857,1783066241000,-771.86511579,0.000256,2]
[426958892,1783066241000,-500.0,0.00025699,2]
[426958891,1783066241000,-500.0,0.00025699,2]
[426958893,1783066241000,-500.0,0.00025699,2]
[426958894,1783066241000,-300.0,0.00025699,10]
[426958896,1783066241000,-500.0,0.00025699,2]
[426958895,1783066241000,-500.0,0.00025699,2]
[426958897,1783066241000,-500.0,0.00025699,2]
[426958899,1783066241000,-513.28637883,0.00025699,2]
[426958900,1783066241000,-500.0,0.00025699,2]
[426958901,1783066241000,-500.0,0.00025699,2]
[426958898,1783066241000,-500.0,0.00025699,2]
[426958906,1783066241000,-500.0,0.00025699,2]
[426958907,1783066241000,-335.69369789,0.00025699,2]
[426958904,1783066241000,-500.0,0.00025699,2]
[426958903,1783066241000,-445.79639571,0.00025699,2]
[426958905,1783066241000,-500.0,0.00025699,2]
[426958911,1783066241000,-500.0,0.00025699,2]
[426958908,1783066241000,-500.0,0.00025699,2]
[426958912,1783066241000,-500.0,0.00025699,2]
[426958910,1783066241000,-500.0,0.00025699,2]
[426958909,1783066241000,-500.0,0.00025699,2]
[426958913,1783066241000,-500.0,0.00025699,2]
[426958915,1783066241000,-500.0,0.00025699,2]
[426958914,1783066241000,-582.9167636,0.00025699,2]
[426958860,1783066241000,-174.34275616,0.000256,4]
[426958889,1783066241000,-500.0,0.00025699,2]
[426958890,1783066241000,-500.0,0.00025699,2]
[426958902,1783066241000,-500.0,0.00025699,2]
[426958886,1783066241000,-300.0,0.00025699,10]
[426958862,1783066241000,-152.42114286,0.000256,2]
[426958888,1783066241000,-500.0,0.00025699,2]
[426958863,1783066241000,-428.11875631,0.00025641,2]
[426958861,1783066241000,-308.13384107,0.000256,2]
[426958866,1783066241000,-150.0,0.00025678,7]
[426958865,1783066241000,-150.0,0.00025675,7]
[426958864,1783066241000,-487.931332,0.00025665,60]
[426958867,1783066241000,-207.64359543,0.0002569,2]
[426958869,1783066241000,-300.0,0.00025699,10]
[426958871,1783066241000,-500.0,0.00025699,2]
[426958870,1783066241000,-500.0,0.00025699,2]
[426958872,1783066241000,-500.0,0.00025699,2]
[426958873,1783066241000,-500.0,0.00025699,2]
[426958868,1783066241000,-300.0,0.00025699,10]
[426958885,1783066241000,-500.0,0.00025699,2]
[426958887,1783066241000,-500.0,0.00025699,2]
[426958874,1783066241000,-623.10999442,0.00025699,2]
[426958882,1783066241000,-500.0,0.00025699,2]
[426958884,1783066241000,-500.0,0.00025699,2]
[426958883,1783066241000,-500.0,0.00025699,2]
[426958880,1783066241000,-500.0,0.00025699,2]
[426958881,1783066241000,-500.0,0.00025699,2]
[426958878,1783066241000,-518.80128499,0.00025699,2]
[426958875,1783066241000,-300.0,0.00025699,10]
[426958877,1783066241000,-500.0,0.00025699,2]
[426958876,1783066241000,-500.0,0.00025699,2]
[426958879,1783066241000,-500.0,0.00025699,2]
[426958954,1783066242000,-151.0,0.000257,2]
[426958955,1783066242000,-729.031628,0.000257,2]
[426958959,1783066242000,-151.0,0.000257,2]
[426958956,1783066242000,-729.031628,0.000257,2]
[426958953,1783066242000,-152.450153,0.000257,2]
[426958947,1783066242000,-251.638202,0.000257,2]
[426958951,1783066242000,-884.850308,0.000257,2]
[426958950,1783066242000,-884.850308,0.000257,2]
[426958948,1783066242000,-251.638202,0.000257,2]
[426958949,1783066242000,-884.850308,0.000257,2]
[426958957,1783066242000,-729.031628,0.000257,2]
[426958952,1783066242000,-884.850308,0.000257,2]
[426958960,1783066242000,-219.014256,0.000257,2]
[426958972,1783066242000,-151.0,0.000257,2]
[426958961,1783066242000,-219.014256,0.000257,2]
[426958962,1783066242000,-219.014256,0.000257,2]
[426958964,1783066242000,-506.722984,0.000257,2]
[426958963,1783066242000,-219.014256,0.000257,2]
[426958965,1783066242000,-506.722984,0.000257,2]
[426958966,1783066242000,-151.0,0.000257,2]
[426958967,1783066242000,-153.324504,0.000257,2]
[426958970,1783066242000,-151.0,0.000257,2]
[426958969,1783066242000,-506.722984,0.000257,2]
[426958971,1783066242000,-151.0,0.000257,2]
[426958968,1783066242000,-506.722984,0.000257,2]
[426958944,1783066242000,-156.80197,0.000257,2]
[426958958,1783066242000,-729.031628,0.000257,2]
[426958946,1783066242000,-251.638202,0.000257,2]
[426958916,1783066242000,-500.0,0.00025699,2]
[426958942,1783066242000,-151.0,0.000257,2]
[426958917,1783066242000,-500.0,0.00025699,2]
[426958918,1783066242000,-500.0,0.00025699,2]
[426958919,1783066242000,-500.0,0.00025699,2]
[426958923,1783066242000,-179.60269852,0.000257,2]
[426958922,1783066242000,-1787678.88861081,0.000257,7]
[426958921,1783066242000,-3255.97628438,0.000257,2]
[426958924,1783066242000,-226.155883,0.000257,2]
[426958920,1783066242000,-1000.0,0.000257,9]
[426958925,1783066242000,-187.763118,0.000257,2]
[426958929,1783066242000,-151.0,0.000257,2]
[426958927,1783066242000,-151.0,0.000257,2]
[426958928,1783066242000,-151.0,0.000257,2]
[426958945,1783066242000,-251.638202,0.000257,2]
[426958926,1783066242000,-151.0,0.000257,2]
[426958931,1783066242000,-421.168781,0.000257,2]
[426958933,1783066242000,-151.0,0.000257,2]
[426958932,1783066242000,-151.0,0.000257,2]
[426958934,1783066242000,-151.0,0.000257,2]
[426958935,1783066242000,-151.0,0.000257,2]
[426958936,1783066242000,-151.0,0.000257,2]
[426958937,1783066242000,-240.529288,0.000257,2]
[426958939,1783066242000,-151.0,0.000257,15]
[426958938,1783066242000,-151.0,0.000257,15]
[426958940,1783066242000,-156.80197,0.000257,2]
[426958941,1783066242000,-156.80197,0.000257,2]
[426958943,1783066242000,-156.80197,0.000257,2]
[426958974,1783066242000,-151.0,0.000257,2]
[426958975,1783066242000,-150.0,0.00025723,7]
[426958930,1783066242000,-500.0,0.000257,2]
[426958978,1783066242000,-166.65,0.00025762,2]
[426959005,1783066242000,-251.638202,0.000258,2]
[426959006,1783066242000,-251.638202,0.000258,2]
[426959010,1783066242000,-884.850308,0.000258,2]
[426959012,1783066242000,-884.850308,0.000258,2]
[426959011,1783066242000,-884.850308,0.000258,2]
[426959013,1783066242000,-1600.0,0.000258,9]
[426959014,1783066242000,-151.0,0.000258,2]
[426959015,1783066242000,-729.031628,0.000258,2]
[426959016,1783066242000,-729.031628,0.000258,2]
[426959017,1783066242000,-729.031628,0.000258,2]
[426959021,1783066242000,-219.014256,0.000258,2]
[426959020,1783066242000,-219.014256,0.000258,2]
[426959004,1783066242000,-156.80197,0.000258,2]
[426959019,1783066242000,-151.0,0.000258,2]
[426959023,1783066242000,-219.014256,0.000258,2]
[426959025,1783066242000,-506.722984,0.000258,2]
[426959024,1783066242000,-506.722984,0.000258,2]
[426959027,1783066242000,-506.722984,0.000258,2]
[426959026,1783066242000,-151.0,0.000258,2]
[426959029,1783066242000,-151.0,0.000258,2]
[426959031,1783066242000,-151.0,0.000258,2]
[426959028,1783066242000,-506.722984,0.000258,2]
[426959032,1783066242000,-151.0,0.000258,2]
[426959030,1783066242000,-151.0,0.000258,2]
[426959033,1783066242000,-169.6841,0.000258,2]
[426959034,1783066242000,-4571.15731054,0.00025822,2]
[426959018,1783066242000,-729.031628,0.000258,2]
[426959008,1783066242000,-251.638202,0.000258,2]
[426959022,1783066242000,-219.014256,0.000258,2]
[426959007,1783066242000,-251.638202,0.000258,2]
[426959009,1783066242000,-884.850308,0.000258,2]
[426958976,1783066242000,-150.0,0.00025723,7]
[426958977,1783066242000,-350.0,0.00025737,2]
[426958979,1783066242000,-150.0,0.0002579,7]
[426958982,1783066242000,-300.0,0.00025799,10]
[426958981,1783066242000,-279.12440684,0.00025797,7]
[426958984,1783066242000,-567.99677537,0.00025799,2]
[426958983,1783066242000,-300.0,0.00025799,10]
[426958980,1783066242000,-150.0,0.0002579,7]
[426958985,1783066242000,-220.8,0.000258,7]
[426958988,1783066242000,-500.0,0.000258,7]
[426958987,1783066242000,-500.0,0.000258,7]
[426958989,1783066242000,-500.0,0.000258,7]
[426958986,1783066242000,-500.0,0.000258,7]
[426958973,1783066242000,-151.0,0.000257,2]
[426958999,1783066242000,-151.0,0.000258,2]
[426958991,1783066242000,-151.0,0.000258,2]
[426958992,1783066242000,-151.0,0.000258,2]
[426958994,1783066242000,-151.0,0.000258,2]
[426958996,1783066242000,-151.0,0.000258,2]
[426958993,1783066242000,-151.0,0.000258,2]
[426958995,1783066242000,-151.0,0.000258,2]
[426958997,1783066242000,-151.0,0.000258,2]
[426959000,1783066242000,-156.80197,0.000258,2]
[426959001,1783066242000,-156.80197,0.000258,2]
[426958998,1783066242000,-295.375301,0.000258,2]
[426959002,1783066242000,-151.0,0.000258,2]
[426959003,1783066242000,-156.80197,0.000258,2]
[426958990,1783066242000,-470264.33671937,0.000258,2]
[426959045,1783066243000,-3255.97628438,0.000259,2]
[426959054,1783066243000,-14084.84534859,0.00025921,2]
[426959046,1783066243000,-707.15457548,0.000259,2]
[426959049,1783066243000,-185.13461295,0.000259,2]
[426959044,1783066243000,-150.55273795,0.00025859,4]
[426959035,1783066243000,-806.03561476,0.00025822,2]
[426959042,1783066243000,-2450.95994271,0.00025822,2]
[426959038,1783066243000,-519.56113632,0.00025822,2]
[426959036,1783066243000,-697.82490397,0.00025822,2]
[426959037,1783066243000,-366.99796995,0.00025822,2]
[426959047,1783066243000,-461.38115979,0.000259,2]
[426959041,1783066243000,-861.93328213,0.00025822,2]
[426959050,1783066243000,-2100.0,0.000259,9]
[426959063,1783066243000,-880.25690448,0.00024263,2]
[426959052,1783066243000,-428.11875631,0.00025915,2]
[426959066,1783066243000,-343.68,0.00025921,2]
[426959048,1783066243000,-771.86511579,0.000259,2]
[426959064,1783066243000,-2194.63279726,0.00025921,2]
[426959062,1783066243000,-584.07503948,0.00024263,2]
[426959061,1783066243000,2491.04879869,0.0002569,120]
[426959065,1783066243000,-312.04572521,0.00025921,2]
[426959060,1783066243000,3000.0,0.0002569,120]
[426959057,1783066243000,3000.0,0.0002569,120]
[426959053,1783066243000,-155.76472,0.00025915,2]
[426959051,1783066243000,-150.0,0.00025901,7]
[426959059,1783066243000,3000.0,0.0002569,120]
[426959079,1783066246000,-437.78217661,0.00024456,2]
[426959082,1783066247000,-4579.64893288,0.000255,2]
[426959081,1783066247000,-1000.0,0.00024658,2]
[426959080,1783066247000,-466.21782339,0.00024456,2]
[426959091,1783066265000,500.0,0.00026589,120]
[426959092,1783066269000,207.514801,0.00026264,120]
[426959093,1783066273000,223.881001,0.00026264,120]
[426959094,1783066274000,242.849658,0.00026264,120]
[426959095,1783066324000,1652.63,0.00027646,120]
[426959097,1783066338000,101489.0,0.00030136,120]
[426959099,1783066400000,400.0,0.00015,2]
[426959100,1783066454000,5799.0,0.00030137,120]
[426959101,1783066472000,261169.0641,0.00024074,120]
[426959103,1783066532000,175077.05073845,0.0003,120]
[426959104,1783066546000,500.0,0.00030136,120]
[426959106,1783066549000,228.54293304,0.00026569,120]
[426959105,1783066549000,193.47899622,0.00026569,120]
[426959107,1783066553000,500.0,0.00030136,120]
[426959109,1783066708000,500.0,0.00030136,120]
[426959108,1783066708000,500.0,0.00030136,120]
[426959110,1783066752000,-150.0,0.00015431,2]
[426959111,1783066869000,160.0,0.0001,30]
[426959113,1783066943000,171.91,0.00029909,120]
[426959112,1783066943000,171.91,0.0002719,120]
[426959114,1783066951000,500.0,0.00030136,120]
[426959115,1783067030000,1322.1,0.00028401,120]
[426959120,1783067184000,1858.429681,0.0002863,120]
[426959121,1783067239000,2092.58,0.000301,120]
[426959122,1783067340000,2000.0,0.00030136,120]
[426959161,1783067431000,-1000.0,0.00021789,2]
[426959159,1783067431000,-200.0,0.00021676,2]
[426959155,1783067431000,-10470.17800963,0.00021273,2]
[426959158,1783067431000,-505.9313,0.00021603,2]
[426959157,1783067431000,-161.04832905,0.00021507,30]
[426959156,1783067431000,-16363.48199037,0.00021273,2]
[426959151,1783067431000,-176.20735755,0.000199,2]
[426959152,1783067431000,-20000.0,0.0002,2]
[426959154,1783067431000,-150.0,0.00021272,2]
[426959150,1783067431000,-740.2626,0.00019714,2]
[426959143,1783067431000,-197.33816064,0.00017888,2]
[426959148,1783067431000,-365.73165319,0.00019714,2]
[426959149,1783067431000,-547.11268019,0.00019714,2]
[426959147,1783067431000,-179.80011725,0.00019714,2]
[426959141,1783067431000,-250.0,0.00017888,2]
[426959140,1783067431000,-181.51425625,0.00017399,2]
[426959142,1783067431000,-226.06505133,0.00017888,2]
[426959144,1783067431000,-102.66183936,0.00017888,2]
[426959145,1783067431000,-814.23716383,0.0001847,2]
[426959160,1783067431000,-171.91,0.00021752,2]
[426959139,1783067431000,-227.21369369,0.00016262,2]
[426959153,1783067431000,-302.19421261,0.00021262,2]
[426959146,1783067431000,-27.51682103,0.00019714,2]
[426959162,1783067431000,-390.0,0.00021858,12]
[426959164,1783067431000,-437.0,0.00022,2]
[426959163,1783067431000,-5000.0,0.00021918,2]
[426959191,1783067431000,-151.0,0.00022454,2]
[426959194,1783067431000,-151.0,0.00022454,2]
[426959189,1783067431000,-151.0,0.00022454,2]
[426959187,1783067431000,-151.0,0.00022454,2]
[426959178,1783067431000,-151.0,0.00022454,2]
[426959176,1783067431000,-151.0,0.00022454,2]
[426959182,1783067431000,-151.0,0.00022454,2]
[426959180,1783067431000,-151.0,0.00022454,2]
[426959175,1783067431000,-151.0,0.00022454,2]
[426959177,1783067431000,-151.0,0.00022454,2]
[426959196,1783067431000,-1865.22,0.00022466,2]
[426959184,1783067431000,-151.0,0.00022454,2]
[426959185,1783067431000,-151.0,0.00022454,2]
[426959167,1783067431000,-151.0,0.00022454,2]
[426959166,1783067431000,-151.0,0.00022454,2]
[426959168,1783067431000,-151.0,0.00022454,2]
[426959169,1783067431000,-222.32720956,0.00022454,2]
[426959165,1783067431000,-623.49247801,0.00022268,2]
[426959172,1783067431000,-151.0,0.00022454,2]
[426959171,1783067431000,-151.0,0.00022454,2]
[426959174,1783067431000,-151.0,0.00022454,2]
[426959173,1783067431000,-151.0,0.00022454,2]
[426959170,1783067431000,-151.0,0.00022454,2]
[426959223,1783067432000,-200.0,0.00022703,2]
[426959239,1783067432000,-155.9931201,0.00023268,6]
[426959237,1783067432000,-181.51425624,0.00023236,2]
[426959233,1783067432000,-2302.61,0.00023127,2]
[426959231,1783067432000,-3764.37,0.00022767,2]
[426959227,1783067432000,-357.84460311,0.00022732,2]
[426959229,1783067432000,-891.44,0.00022757,2]
[426959225,1783067432000,-1322.1,0.00022721,2]
[426959218,1783067432000,-500.0,0.00022562,2]
[426959214,1783067432000,-4999.99,0.00022562,2]
[426959198,1783067432000,-9999.99,0.00022562,2]
[426959221,1783067432000,-150.0,0.00022638,2]
[426959212,1783067432000,-9999.99,0.00022562,2]
[426959210,1783067432000,-904.65,0.00022562,2]
[426959199,1783067432000,-9999.99,0.00022562,2]
[426959205,1783067432000,-3674.79,0.00022562,2]
[426959202,1783067432000,-299.99,0.00022562,7]
[426959204,1783067432000,-9188.76,0.00022562,2]
[426959207,1783067432000,-9999.99,0.00022562,2]
[426959249,1783067432000,-2878.83656115,0.00023347,2]
[426959216,1783067432000,-499.99,0.00022562,2]
[426959241,1783067432000,-6352.96,0.00023268,2]
[426959235,1783067432000,-3191.55,0.00023129,2]
[426959245,1783067432000,-4156.97506393,0.00023268,2]
[426959248,1783067432000,-3764.37,0.00023336,2]
[426959267,1783067432000,-500.0,0.00023902,2]
[426959265,1783067432000,-500.0,0.00023902,2]
[426959266,1783067432000,-500.0,0.00023902,2]
[426959264,1783067432000,-500.0,0.00023902,2]
[426959263,1783067432000,-500.0,0.00023902,2]
[426959254,1783067432000,-500.0,0.00023902,2]
[426959258,1783067432000,-500.0,0.00023902,2]
[426959256,1783067432000,-500.0,0.00023902,2]
[426959257,1783067432000,-500.0,0.00023902,2]
[426959255,1783067432000,-500.0,0.00023902,2]
[426959262,1783067432000,-500.0,0.00023902,2]
[426959259,1783067432000,-500.0,0.00023902,2]
[426959261,1783067432000,-500.0,0.00023902,2]
[426959260,1783067432000,-500.0,0.00023902,2]
[426959253,1783067432000,-2058.14786363,0.00023801,2]
[426959243,1783067432000,-4191.0234,0.00023268,2]
[426959250,1783067432000,-163.97,0.00023355,2]
[426959251,1783067432000,-500.0,0.00023592,2]
[426959268,1783067432000,-477.01337251,0.00023902,2]
[426959246,1783067432000,-389.01559595,0.00023268,2]
[426959247,1783067432000,-2291.97674012,0.00023268,2]
[426959252,1783067432000,-150.0,0.00023626,2]
[426959320,1783067438000,-500.0,0.00023902,2]
[426959313,1783067438000,-486.82956393,0.00023902,2]
[426959311,1783067438000,-500.0,0.00023902,2]
[426959330,1783067438000,-500.0,0.00023902,2]
[426959312,1783067438000,-500.0,0.00023902,2]
[426959322,1783067438000,-500.0,0.00023902,2]
[426959328,1783067438000,-500.0,0.00023902,2]
[426959324,1783067438000,-500.0,0.00023902,2]
[426959316,1783067438000,-500.0,0.00023902,2]
[426959326,1783067438000,-500.0,0.00023902,2]
[426959332,1783067438000,-500.0,0.00023902,2]
[426959357,1783067438000,-500.0,0.00023902,2]
[426959334,1783067438000,-500.0,0.00023902,2]
[426959347,1783067438000,-500.0,0.00023902,2]
[426959340,1783067438000,-500.0,0.00023902,2]
[426959349,1783067438000,-500.0,0.00023902,2]
[426959343,1783067438000,-500.0,0.00023902,2]
[426959345,1783067438000,-500.0,0.00023902,2]
[426959338,1783067438000,-500.0,0.00023902,2]
[426959355,1783067438000,-500.0,0.00023902,2]
[426959351,1783067438000,-500.0,0.00023902,2]
[426959353,1783067438000,-500.0,0.00023902,2]
[426959310,1783067438000,-500.0,0.00023902,2]
[426959359,1783067438000,-500.0,0.00023902,2]
[426959336,1783067438000,-500.0,0.00023902,2]
[426959305,1783067438000,-500.0,0.00023902,2]
[426959296,1783067438000,-500.0,0.00023902,2]
[426959303,1783067438000,-500.0,0.00023902,2]
[426959282,1783067438000,-22.98662749,0.00023902,2]
[426959284,1783067438000,-500.0,0.00023902,2]
[426959283,1783067438000,-500.0,0.00023902,2]
[426959287,1783067438000,-500.0,0.00023902,2]
[426959286,1783067438000,-500.0,0.00023902,2]
[426959285,1783067438000,-485.28043751,0.00023902,2]